fUSD/lending_fUSD_20240119
["ID","MTS","AMOUNT","RATE_DAILY","PERIOD"]
[312180534,1705681841341,-500.0,0.00021917,2]
[312180536,1705681841352,-500.0,0.00021917,2]
[312180538,1705681841363,-500.0,0.00021917,2]
[312180541,1705681841375,-500.0,0.00021917,2]
[312180543,1705681841385,-500.0,0.00021917,2]
[312180544,1705681841395,-607.01,0.00021917,2]
[312180547,1705681841413,-500.0,0.00021917,2]
[312180549,1705681841425,-590.39,0.00021917,2]
[312180551,1705681841435,-500.0,0.00021917,2]
[312180553,1705681841445,-500.0,0.00021917,2]
[312180555,1705681841460,-500.0,0.00021917,2]
[312180557,1705681841470,-1302.17,0.00021917,2]
[312180559,1705681841480,-500.0,0.00021917,2]
[312180562,1705681841491,-500.0,0.00021917,2]
[312180564,1705681841501,-1117.75,0.00021917,2]
[312180566,1705681841511,-634.71,0.00021917,2]
[312180568,1705681841522,-500.0,0.00021917,2]
[312180570,1705681841532,-768.21,0.00021917,2]
[312180572,1705681841543,-500.0,0.00021917,2]
[312180574,1705681841553,-865.72,0.00021917,2]
[312180576,1705681841563,-500.0,0.00021917,2]
[312180578,1705681841573,-1636.86,0.00021917,2]
[312180580,1705681841583,-500.0,0.00021917,2]
[312180582,1705681841592,-4595.69,0.00021917,2]
[312180584,1705681841603,-1214.43,0.00021917,2]
[312180586,1705681841613,-506.9305075,0.00021917,2]
[312180588,1705681841623,-944.6,0.00021917,2]
[312180590,1705681841633,-500.0,0.00021917,2]
[312180593,1705681841643,-700.59,0.00021917,2]
[312180595,1705681841660,-500.0,0.00021917,2]
[312180597,1705681841670,-500.0,0.00021917,2]
[312180599,1705681841679,-500.0,0.00021917,2]
[312180601,1705681841692,-500.0,0.00021917,2]
[312180603,1705681841702,-599.04,0.00021917,2]
[312180605,1705681841712,-500.0,0.00021917,2]
[312180607,1705681841722,-1023.85,0.00021917,2]
[312180609,1705681841732,-500.0,0.00021917,2]
[312180611,1705681841742,-500.0,0.00021917,2]
[312180613,1705681841751,-2249.08,0.00021917,2]
[312180615,1705681841761,-1192.87,0.00021917,2]
[312180617,1705681841770,-5901.25,0.00021917,2]
[312180619,1705681841780,-500.0,0.00021917,2]
[312180622,1705681841793,-500.0,0.00021917,2]
[312180624,1705681841803,-500.0,0.00021917,2]
[312180626,1705681841813,-517.06,0.00021917,2]
[312180628,1705681841823,-3605.17,0.00021917,2]
[312180630,1705681841834,-1623.45,0.00021917,2]
[312180632,1705681841844,-500.0,0.00021917,2]
[312180634,1705681841854,-500.0,0.00021917,2]
[312180636,1705681841864,-500.0,0.00021917,2]
[312180638,1705681841874,-500.0,0.00021917,2]
[312180640,1705681841885,-1568.02,0.00021917,2]
[312180642,1705681841895,-1679.0,0.00021917,2]
[312180644,1705681841912,-1688.77,0.00021917,2]
[312180646,1705681841923,-582.7,0.00021917,2]
[312180648,1705681841934,-1360.93,0.00021917,2]
[312180650,1705681841944,-500.0,0.00021917,2]
[312180652,1705681841953,-608.97,0.00021917,2]
[312180664,1705681842099,-500.0,0.00021917,2]
[312180665,1705681842109,-13996.16,0.00021917,2]
[312180666,1705681842119,-1920.02,0.00021917,2]
[312180667,1705681842128,-500.0,0.00021917,2]
[312180669,1705681842138,-882.35,0.00021917,2]
[312180671,1705681842152,-500.0,0.00021917,2]
[312180673,1705681842161,-697.06,0.00021917,2]
[312180675,1705681842171,-840.43,0.00021917,2]
[312180677,1705681842182,-524.85123052,0.00021917,2]
[312180680,1705681842193,-500.0,0.00021917,2]
[312180682,1705681842202,-787.71,0.00021917,2]
[312180685,1705681842216,-931.23,0.00021917,2]
[312180687,1705681842227,-2869.61,0.00021917,2]
[312180689,1705681842237,-8192.35,0.00021917,2]
[312180691,1705681842247,-500.0,0.00021917,2]
[312180693,1705681842258,-500.0,0.00021917,2]
[312180695,1705681842268,-1251.7,0.00021917,2]
[312180697,1705681842280,-476.73516387,0.00021917,2]
[312180700,1705681842290,-596.94,0.00021917,2]
[312180702,1705681842301,-557.49,0.00021917,2]
[312180704,1705681842311,-1369.17,0.00021917,2]
[312180706,1705681842322,-500.0,0.00021917,2]
[312180708,1705681842332,-840.1,0.00021917,2]
[312180710,1705681842341,-552.9,0.00021917,2]
[312180712,1705681842352,-500.0,0.00021917,2]
[312180714,1705681842361,-541.05,0.00021917,2]
[312180716,1705681842372,-500.0,0.00021917,2]
[312180718,1705681842381,-500.0,0.00021917,2]
[312180720,1705681842391,-1641.86,0.00021917,2]
[312180723,1705681842406,-1472.22,0.00021917,2]
[312180726,1705681842415,-500.0,0.00021917,2]
[312180729,1705681842425,-866.68,0.00021917,2]
[312180733,1705681842435,-769.26,0.00021917,2]
[312180737,1705681842445,-663.65,0.00021917,2]
[312180741,1705681842456,-770.95,0.00021917,2]
[312180745,1705681842466,-500.0,0.00021917,2]
[312180748,1705681842476,-790.59,0.00021917,2]
[312180751,1705681842486,-844.64,0.00021917,2]
[312180754,1705681842497,-6030.56,0.00021917,2]
[312180757,1705681842507,-500.0,0.00021917,2]
[312180759,1705681842518,-500.0,0.00021917,2]
[312180761,1705681842528,-2187.65,0.00021917,2]
[312180763,1705681842538,-500.0,0.00021917,2]
[312180765,1705681842548,-500.0,0.00021917,2]
[312180767,1705681842557,-500.0,0.00021917,2]
[312180769,1705681842567,-500.0,0.00021917,2]
[312180771,1705681842577,-500.0,0.00021917,2]
[312180773,1705681842587,-500.0,0.00021917,2]
[312180775,1705681842596,-500.0,0.00021917,2]
[312180777,1705681842605,-858.21,0.00021917,2]
[312180779,1705681842614,-597.53,0.00021917,2]
[312180781,1705681842623,-500.0,0.00021917,2]
[312180783,1705681842631,-500.0,0.00021917,2]
[312180785,1705681842640,-500.0,0.00021917,2]
[312180787,1705681842655,-500.0,0.00021917,2]
[312180789,1705681842664,-500.0,0.00021917,2]
[312180791,1705681842673,-1237.95,0.00021917,2]
[312180793,1705681842683,-4585.58,0.00021917,2]
[312180795,1705681842692,-970.86,0.00021917,2]
[312180797,1705681842701,-500.0,0.00021917,2]
[312180799,1705681842710,-500.0,0.00021917,2]
[312180801,1705681842720,-7084.03,0.00021917,2]
[312180803,1705681842730,-504.99,0.00021917,2]
[312180805,1705681842739,-663.95,0.00021917,2]
[312180807,1705681842748,-500.0,0.00021917,2]
[312180809,1705681842757,-500.0,0.00021917,2]
[312180811,1705681842767,-500.0,0.00021917,2]
[312180813,1705681842776,-884.36,0.00021917,2]
[312180815,1705681842786,-500.0,0.00021917,2]
[312180817,1705681842795,-500.0,0.00021917,2]
[312180819,1705681842804,-500.0,0.00021917,2]
[312180821,1705681842813,-500.0,0.00021917,2]
[312180823,1705681842823,-500.0,0.00021917,2]
[312180825,1705681842832,-500.0,0.00021917,2]
[312180827,1705681842841,-500.0,0.00021917,2]
[312180829,1705681842851,-500.0,0.00021917,2]
[312180831,1705681842861,-500.0,0.00021917,2]
[312180833,1705681842873,-500.0,0.00021917,2]
[312180835,1705681842882,-3443.38,0.00021917,2]
[312180837,1705681842894,-1511.26,0.00021917,2]
[312180839,1705681842906,-792.07,0.00021917,2]
[312180841,1705681842915,-2223.75,0.00021917,2]
[312180844,1705681842924,-905.21,0.00021917,2]
[312180847,1705681842934,-940.66,0.00021917,2]
[312180849,1705681842944,-186.19763636,0.00021917,2]
[312180973,1705681844206,-313.80236364,0.00021917,2]
[312180975,1705681844217,-319.04145472,0.00021917,2]
[312180977,1705681844228,-262.54854528,0.00021917,2]
[312180979,1705681844237,-500.0,0.00021917,2]
[312180981,1705681844247,-236.754136,0.00021917,2]
[312180983,1705681844259,-263.245864,0.00021917,2]
[312180985,1705681844268,-500.0,0.00021917,2]
[312180987,1705681844277,-344.96960258,0.00021917,2]
[312180989,1705681844288,-155.03039742,0.00021917,2]
[312180991,1705681844298,-500.0,0.00021917,2]
[312180993,1705681844309,-500.0,0.00021917,2]
[312180995,1705681844318,-500.0,0.00021917,2]
[312180997,1705681844327,-500.0,0.00021917,2]
[312180999,1705681844337,-511.28719937,0.00021917,2]
[312181001,1705681844346,-1527.56,0.00021917,2]
[312181003,1705681844355,-987.7,0.00021917,2]
[312181005,1705681844365,-500.0,0.00021917,2]
[312181007,1705681844374,-970.23,0.00021917,2]
[312181009,1705681844384,-1340.28,0.00021917,2]
[312181010,1705681844393,-372.42349208,0.00021917,2]
[312181012,1705681844407,-1187.27,0.00021917,2]
[312181014,1705681844416,-526.6,0.00021917,2]
[312181016,1705681844426,-500.0,0.00021917,2]
[312181018,1705681844435,-1530.29297241,0.00021917,2]
[312181020,1705681844447,-635.60895647,0.00021917,2]
[312181033,1705681844564,-8385.79807112,0.00021917,2]
[312181034,1705681844574,-500.0,0.00021917,2]
[312181036,1705681844583,-500.0,0.00021917,2]
[312181038,1705681844592,-769.07342888,0.00021917,2]
[312181040,1705681844603,-410.415,0.00021917,2]
[312181043,1705681844619,-266.29936235,0.00021917,2]
[312181045,1705681844634,-470.64220877,0.00021917,2]
[312181047,1705681844643,-500.0,0.00021917,2]
[312181049,1705681844658,-882.7,0.00021917,2]
[312181051,1705681844668,-500.0,0.00021917,2]
[312181053,1705681844678,-500.0,0.00021917,2]
[312181055,1705681844688,-500.0,0.00021917,2]
[312181057,1705681844697,-856.36,0.00021917,2]
[312181059,1705681844707,-652.73,0.00021917,2]
[312181061,1705681844717,-500.0,0.00021917,2]
[312181063,1705681844727,-500.0,0.00021917,2]
[312181065,1705681844738,-500.0,0.00021917,2]
[312181067,1705681844747,-803.82830151,0.00021917,2]
[312181069,1705681844760,-122.10169849,0.00021917,2]
[312181071,1705681844770,-895.31470151,0.00021917,2]
[312181074,1705681844781,-30.61529849,0.00021917,2]
[312181076,1705681844791,-925.93,0.00021917,2]
[312181078,1705681844800,-263.33336151,0.00021917,2]
[312181081,1705681844827,-662.59663849,0.00021917,2]
[312181084,1705681844836,-159.72618935,0.00021917,2]
[312181086,1705681844845,-58.28036984,0.00021917,2]
[312181349,1705681847702,-867.64963016,0.00021917,2]
[312181374,1705681847973,-925.93,0.00021917,2]
[312181377,1705681847992,-500.0,0.00021917,2]
[312181379,1705681848001,-925.93,0.00021917,2]
[312181381,1705681848011,-1287.67,0.00021917,2]
[312181383,1705681848021,-500.0,0.00021917,2]
[312181385,1705681848030,-825.16,0.00021917,2]
[312181387,1705681848040,-500.0,0.00021917,2]
[312181389,1705681848049,-500.0,0.00021917,2]
[312181390,1705681848059,-500.0,0.00021917,2]
[312181391,1705681848069,-1559.3,0.00021917,2]
[312181392,1705681848078,-985.91,0.00021917,2]
[312181393,1705681848088,-1917.79,0.00021917,2]
[312181394,1705681848098,-1122.77,0.00021917,2]
[312181395,1705681848107,-500.0,0.00021917,2]
[312181396,1705681848117,-500.0,0.00021917,2]
[312181397,1705681848127,-699.39,0.00021917,2]
[312181398,1705681848136,-640.71,0.00021917,2]
[312181399,1705681848145,-632.04,0.00021917,2]
[312181400,1705681848162,-888.6,0.00021917,2]
[312181401,1705681848171,-500.0,0.00021917,2]
[312181402,1705681848184,-500.0,0.00021917,2]
[312181404,1705681848194,-500.0,0.00021917,2]
[312181406,1705681848204,-384.38638375,0.00021917,2]
[312181408,1705681848216,-500.0,0.00021917,2]
[312181410,1705681848227,-500.0,0.00021917,2]
[312181412,1705681848237,-500.0,0.00021917,2]
[312181414,1705681848246,-1071.07,0.00021917,2]
[312181415,1705681848256,-500.0,0.00021917,2]
[312181416,1705681848266,-500.0,0.00021917,2]
[312181417,1705681848277,-3311.58,0.00021917,2]
[312181418,1705681848288,-500.0,0.00021917,2]
[312181420,1705681848298,-500.0,0.00021917,2]
[312181422,1705681848308,-1310.47,0.00021917,2]
[312181424,1705681848318,-678.16,0.00021917,2]
[312181425,1705681848328,-705.74,0.00021917,2]
[312181426,1705681848338,-787.71,0.00021917,2]
[312181427,1705681848348,-500.0,0.00021917,2]
[312181428,1705681848359,-1019.32,0.00021917,2]
[312181429,1705681848369,-500.0,0.00021917,2]
[312181430,1705681848378,-11218.33,0.00021917,2]
[312181431,1705681848388,-500.0,0.00021917,2]
[312181432,1705681848398,-698.24,0.00021917,2]
[312181433,1705681848412,-1270.79,0.00021917,2]
[312181434,1705681848422,-500.0,0.00021917,2]
[312181435,1705681848432,-500.0,0.00021917,2]
[312181436,1705681848442,-500.0,0.00021917,2]
[312181437,1705681848451,-1197.85,0.00021917,2]
[312181438,1705681848461,-500.0,0.00021917,2]
[312181439,1705681848471,-1652.98,0.00021917,2]
[312181440,1705681848481,-599.87,0.00021917,2]
[312181441,1705681848490,-1823.89,0.00021917,2]
[312181442,1705681848500,-500.0,0.00021917,2]
[312181443,1705681848509,-500.0,0.00021917,2]
[312181444,1705681848519,-829.81,0.00021917,2]
[312181445,1705681848528,-500.0,0.00021917,2]
[312181446,1705681848538,-635.78,0.00021917,2]
[312181447,1705681848547,-500.0,0.00021917,2]
[312181448,1705681848556,-500.0,0.00021917,2]
[312181449,1705681848566,-4071.29,0.00021917,2]
[312181450,1705681848576,-500.7,0.00021917,2]
[312181451,1705681848585,-500.0,0.00021917,2]
[312181452,1705681848595,-500.0,0.00021917,2]
[312181453,1705681848604,-1228.31,0.00021917,2]
[312181454,1705681848614,-500.0,0.00021917,2]
[312181455,1705681848623,-2866.42,0.00021917,2]
[312181456,1705681848633,-3226.99,0.00021917,2]
[312181457,1705681848643,-731.42,0.00021917,2]
[312181458,1705681848657,-861.52,0.00021917,2]
[312181459,1705681848666,-500.0,0.00021917,2]
[312181460,1705681848676,-500.0,0.00021917,2]
[312181461,1705681848686,-500.0,0.00021917,2]
[312181462,1705681848695,-500.0,0.00021917,2]
[312181463,1705681848705,-500.0,0.00021917,2]
[312181464,1705681848714,-500.0,0.00021917,2]
[312181465,1705681848723,-858.34,0.00021917,2]
[312181466,1705681848733,-539.34,0.00021917,2]
[312181467,1705681848742,-500.0,0.00021917,2]
[312181468,1705681848752,-500.0,0.00021917,2]
[312181469,1705681848761,-500.0,0.00021917,2]
[312181470,1705681848771,-500.0,0.00021917,2]
[312181471,1705681848781,-500.0,0.00021917,2]
[312181472,1705681848790,-500.0,0.00021917,2]
[312181473,1705681848799,-500.0,0.00021917,2]
[312181474,1705681848808,-526.39300992,0.00021917,2]
[312181475,1705681848818,-500.0,0.00021917,2]
[312181476,1705681848827,-250.0,0.00021918,2]
[312181477,1705681848837,-161.53,0.00021926,2]
[312181478,1705681848846,-158.46,0.00021946,2]
[312181480,1705681848855,-311.5869967,0.00021967,2]
[312181481,1705681848865,-18297.82789794,0.00022,2]
[312181482,1705681848874,-1000.0,0.00022,2]
[312181483,1705681848884,-207.78272895,0.00022,2]
[312181484,1705681848893,-550.0,0.00022,3]
[312181485,1705681848907,-4000.0,0.00022,2]
[312181486,1705681848917,-153.3911162,0.00022013,2]
[312181488,1705681848926,-500.0,0.0002203,2]
[312181489,1705681848935,-310.23,0.0002207,2]
[312181491,1705681848945,-756.2009235,0.00022091,2]
[312181493,1705681848954,-195.81269169,0.00022091,2]
[312181494,1705681848963,-158.46,0.00022104,2]
[312181495,1705681848972,-200.0,0.00022136,2]
[312181496,1705681848981,-3028.36754844,0.0002219,2]
[312181497,1705681848991,-286.54163893,0.0002219,2]
[312181498,1705681849000,-651.29752707,0.0002219,2]
[312181499,1705681849010,-500.0,0.0002219,2]
[312181500,1705681849019,-500.0,0.0002219,2]
[312181501,1705681849028,-468.88,0.0002219,2]
[312181502,1705681849037,-925.93,0.0002219,2]
[312181503,1705681849046,-925.93,0.0002219,2]
[312181504,1705681849055,-925.93,0.0002219,2]
[312181505,1705681849065,-925.93,0.0002219,2]
[312181506,1705681849074,-925.93,0.0002219,2]
[312181507,1705681849083,-7999.99,0.0002219,3]
[312181508,1705681849092,-832903.20947855,0.0002219,3]
[312181509,1705681849102,-500.0,0.00022191,2]
[312181510,1705681849110,-500.0,0.00022191,2]
[312181511,1705681849120,-500.0,0.00022191,2]
[312181512,1705681849129,-500.0,0.00022191,2]
[312181513,1705681849139,-582.65,0.00022191,2]
[312181514,1705681849148,-500.0,0.00022191,2]
[312181515,1705681849161,-500.0,0.00022191,2]
[312181516,1705681849170,-500.0,0.00022191,2]
[312181517,1705681849179,-500.0,0.00022191,2]
[312181518,1705681849192,-500.0,0.00022191,2]
[312181519,1705681849202,-625.63654483,0.00022191,2]
[312181520,1705681849211,-527.49121505,0.00022191,2]
[312181521,1705681849221,-500.0,0.00022191,2]
[312181522,1705681849233,-500.0,0.00022191,2]
[312181523,1705681849242,-500.0,0.00022191,2]
[312181524,1705681849253,-500.0,0.00022191,2]
[312181525,1705681849263,-500.0,0.00022191,2]
[312181526,1705681849273,-500.0,0.00022191,2]
[312181527,1705681849282,-500.0,0.00022191,2]
[312181528,1705681849292,-500.0,0.00022191,2]
[312181529,1705681849302,-500.0,0.00022191,2]
[312181530,1705681849311,-500.0,0.00022191,2]
[312181531,1705681849321,-500.0,0.00022191,2]
[312181532,1705681849330,-500.0,0.00022191,2]
[312181533,1705681849339,-496.49738386,0.00022191,2]
[312181534,1705681849350,-500.0,0.00022191,2]
[312181535,1705681849360,-500.0,0.00022191,2]
[312181536,1705681849369,-500.0,0.00022191,2]
[312181537,1705681849379,-500.0,0.00022191,2]
[312181538,1705681849388,-500.0,0.00022191,2]
[312181539,1705681849397,-500.0,0.00022191,2]
[312181540,1705681849410,-500.0,0.00022191,2]
[312181541,1705681849419,-500.0,0.00022191,2]
[312181542,1705681849429,-500.0,0.00022191,2]
[312181543,1705681849438,-500.0,0.00022191,2]
[312181544,1705681849447,-270.79,0.00022191,2]
[312181545,1705681849457,-500.0,0.00022191,2]
[312181546,1705681849466,-591.46,0.00022191,2]
[312181547,1705681849475,-500.0,0.00022191,2]
[312181548,1705681849485,-500.0,0.00022191,2]
[312181549,1705681849494,-502.46,0.00022191,2]
[312181550,1705681849504,-500.0,0.00022191,2]
[312181551,1705681849513,-500.0,0.00022191,2]
[312181552,1705681849523,-500.0,0.00022191,2]
[312181553,1705681849532,-500.0,0.00022191,2]
[312181554,1705681849542,-585.76,0.00022191,2]
[312181555,1705681849551,-500.0,0.00022191,2]
[312181556,1705681849560,-500.0,0.00022191,2]
[312181557,1705681849569,-500.0,0.00022191,2]
[312181558,1705681849579,-500.0,0.00022191,2]
[312181559,1705681849588,-500.0,0.00022191,2]
[312181560,1705681849598,-500.0,0.00022191,2]
[312181561,1705681849608,-500.0,0.00022191,2]
[312181562,1705681849618,-500.0,0.00022191,2]
[312181563,1705681849627,-500.0,0.00022191,2]
[312181564,1705681849637,-410.60624738,0.00022191,2]
[312181565,1705681849647,-500.0,0.00022191,2]
[312181566,1705681849659,-500.0,0.00022191,2]
[312181567,1705681849669,-598.21,0.00022191,2]
[312181568,1705681849679,-500.0,0.00022191,2]
[312181569,1705681849691,-500.0,0.00022191,2]
[312181570,1705681849701,-500.0,0.00022191,2]
[312181571,1705681849711,-500.0,0.00022191,2]
[312181572,1705681849720,-500.0,0.00022191,2]
[312181573,1705681849730,-500.0,0.00022191,2]
[312181574,1705681849739,-1585.72,0.00022191,2]
[312181575,1705681849749,-500.0,0.00022191,2]
[312181576,1705681849758,-500.0,0.00022191,2]
[312181577,1705681849767,-500.0,0.00022191,2]
[312181578,1705681849776,-500.0,0.00022191,2]
[312181579,1705681849786,-500.0,0.00022191,2]
[312181580,1705681849795,-500.0,0.00022191,2]
[312181581,1705681849804,-600.65,0.00022191,2]
[312181582,1705681849814,-500.0,0.00022191,2]
[312181583,1705681849824,-1062.76,0.00022191,2]
[312181584,1705681849834,-532.64,0.00022191,2]
[312181585,1705681849843,-574.86,0.00022191,2]
[312181586,1705681849853,-500.0,0.00022191,2]
[312181587,1705681849863,-561.8,0.00022191,2]
[312181588,1705681849872,-500.0,0.00022191,2]
[312181589,1705681849882,-508.87,0.00022191,2]
[312181590,1705681849891,-500.0,0.00022191,2]
[312181591,1705681849900,-500.0,0.00022191,2]
[312181592,1705681849914,-500.0,0.00022191,2]
[312181593,1705681849923,-500.0,0.00022191,2]
[312181594,1705681849932,-500.0,0.00022191,2]
[312181595,1705681849942,-529.2,0.00022191,2]
[312181596,1705681849951,-567.13,0.00022191,2]
[312181597,1705681849960,-545.60397096,0.00022191,2]
[312181598,1705681849969,-515.3,0.00022191,2]
[312181599,1705681849979,-500.0,0.00022191,2]
[312181600,1705681849988,-500.0,0.00022191,2]
[312181601,1705681849998,-500.0,0.00022191,2]
[312181602,1705681850007,-654.99,0.00022191,2]
[312181603,1705681850016,-500.0,0.00022191,2]
[312181604,1705681850027,-500.0,0.00022191,2]
[312181605,1705681850036,-500.0,0.00022191,2]
[312181606,1705681850046,-500.0,0.00022191,2]
[312181607,1705681850055,-500.0,0.00022191,2]
[312181608,1705681850064,-500.0,0.00022191,2]
[312181609,1705681850074,-500.0,0.00022191,2]
[312181610,1705681850083,-500.0,0.00022191,2]
[312181611,1705681850093,-500.0,0.00022191,2]
[312181612,1705681850103,-500.0,0.00022191,2]
[312181613,1705681850112,-500.0,0.00022191,2]
[312181614,1705681850122,-500.0,0.00022191,2]
[312181615,1705681850131,-500.0,0.00022191,2]
[312181616,1705681850141,-646.31,0.00022191,2]
[312181617,1705681850150,-500.0,0.00022191,2]
[312181618,1705681850163,-500.0,0.00022191,2]
[312181619,1705681850173,-500.0,0.00022191,2]
[312181620,1705681850183,-500.0,0.00022191,2]
[312181621,1705681850193,-500.0,0.00022191,2]
[312181622,1705681850202,-260.03761949,0.00022191,2]
[312181623,1705681850212,-2510.71,0.00022191,2]
[312181624,1705681850224,-500.0,0.00022191,2]
[312181625,1705681850234,-500.0,0.00022191,2]
[312181626,1705681850244,-500.0,0.00022191,2]
[312181627,1705681850253,-500.0,0.00022191,2]
[312181628,1705681850263,-500.0,0.00022191,2]
[312181629,1705681850274,-500.0,0.00022191,2]
[312181630,1705681850283,-500.0,0.00022191,2]
[312181631,1705681850293,-500.0,0.00022191,2]
[312181632,1705681850303,-500.0,0.00022191,2]
[312181633,1705681850313,-500.0,0.00022191,2]
[312181634,1705681850323,-500.0,0.00022191,2]
[312181635,1705681850333,-721.15,0.00022191,2]
[312181636,1705681850343,-500.0,0.00022191,2]
[312181637,1705681850353,-500.0,0.00022191,2]
[312181638,1705681850363,-500.0,0.00022191,2]
[312181639,1705681850374,-500.0,0.00022191,2]
[312181640,1705681850384,-500.0,0.00022191,2]
[312181641,1705681850394,-500.0,0.00022191,2]
[312181642,1705681850404,-500.0,0.00022191,2]
[312181643,1705681850417,-500.0,0.00022191,2]
[312181644,1705681850504,-500.0,0.00022191,2]
[312181645,1705681850515,-1077.54,0.00022191,2]
[312181646,1705681850525,-522.1,0.00022191,2]
[312181647,1705681850535,-563.58027009,0.00022191,2]
[312181648,1705681850544,-500.0,0.00022191,2]
[312181649,1705681850553,-364.15,0.00022191,2]
[312181650,1705681850563,-519.34,0.00022191,2]
[312181651,1705681850572,-500.0,0.00022191,2]
[312181652,1705681850582,-584.97,0.00022191,2]
[312181653,1705681850591,-500.0,0.00022191,2]
[312181654,1705681850600,-162.91617596,0.00022191,2]
[312181655,1705681850610,-500.0,0.00022191,2]
[312181656,1705681850619,-504.32,0.00022191,2]
[312181657,1705681850628,-500.0,0.00022191,2]
[312181658,1705681850638,-500.0,0.00022191,2]
[312181659,1705681850648,-500.0,0.00022191,2]
[312181660,1705681850660,-500.0,0.00022191,2]
[312181661,1705681850669,-500.0,0.00022191,2]
[312181662,1705681850679,-578.06,0.00022191,2]
[312181663,1705681850688,-500.0,0.00022191,2]
[312181664,1705681850697,-500.0,0.00022191,2]
[312181665,1705681850707,-500.0,0.00022191,2]
[312181666,1705681850717,-500.0,0.00022191,2]
[312181667,1705681850726,-636.19,0.00022191,2]
[312181668,1705681850736,-500.0,0.00022191,2]
[312181669,1705681850745,-502.2,0.00022191,2]
[312181670,1705681850755,-500.0,0.00022191,2]
[312181671,1705681850765,-500.0,0.00022191,2]
[312181672,1705681850775,-500.0,0.00022191,2]
[312181673,1705681850784,-779.69,0.00022191,2]
[312181674,1705681850794,-500.0,0.00022191,2]
[312181675,1705681850804,-500.0,0.00022191,2]
[312181676,1705681850813,-500.0,0.00022191,2]
[312181677,1705681850823,-500.0,0.00022191,2]
[312181678,1705681850832,-500.0,0.00022191,2]
[312181679,1705681850842,-500.0,0.00022191,2]
[312181680,1705681850851,-500.0,0.00022191,2]
[312181681,1705681850861,-500.0,0.00022191,2]
[312181682,1705681850871,-500.0,0.00022191,2]
[312181683,1705681850880,-500.0,0.00022191,2]
[312181684,1705681850890,-500.0,0.00022191,2]
[312181685,1705681850900,-552.94,0.00022191,2]
[312181686,1705681850914,-745.32,0.00022191,2]
[312181687,1705681850923,-500.0,0.00022191,2]
[312181688,1705681850932,-500.0,0.00022191,2]
[312181689,1705681850941,-500.0,0.00022191,2]
[312181690,1705681850950,-500.0,0.00022191,2]
[312181691,1705681850959,-500.0,0.00022191,2]
[312181692,1705681850969,-500.0,0.00022191,2]
[312181693,1705681850978,-609.48,0.00022191,2]
[312181694,1705681850988,-500.0,0.00022191,2]
[312181695,1705681850997,-500.0,0.00022191,2]
[312181696,1705681851007,-500.0,0.00022191,2]
[312181697,1705681851017,-557.2,0.00022191,2]
[312181698,1705681851026,-558.96,0.00022191,2]
[312181699,1705681851036,-500.0,0.00022191,2]